bitfinex/quotes_BTCUSD_20241201
["timestamp","ask_amount","ask_price","bid_price","bid_amount"]
[1733096987397,0.003,97477.0,97476.0,0.1229]
[1733096987650,0.011,97477.0,97476.0,0.1239]
[1733096987859,4.291321,97477.0,97476.0,0.1246318]
[1733096988066,4.39716621,97477.0,97476.0,0.1256318]
[1733096988276,3.22786421,97477.0,97476.0,0.1256318]
[1733096988525,3.16961721,97477.0,97476.0,0.1256318]
[1733096988993,3.16361721,97477.0,97476.0,0.1246318]
[1733096989483,3.17161721,97477.0,97476.0,0.1256318]
[1733096989722,3.16961721,97477.0,97476.0,0.1256318]
[1733096989954,3.17261721,97477.0,97476.0,0.1256318]
[1733096990432,3.16961721,97477.0,97476.0,0.1256318]
[1733096990621,3.16161721,97477.0,97476.0,0.1246318]
[1733096990912,3.16861721,97477.0,97476.0,0.1246318]
[1733096991093,3.14075421,97477.0,97476.0,0.1246318]
[1733096991359,3.13575421,97477.0,97476.0,0.1246318]
[1733096991580,3.14575421,97477.0,97476.0,0.1246318]
[1733096991807,0.10584521,97477.0,97476.0,0.1246318]
[1733096992289,0.11084521,97477.0,97476.0,0.1246318]
[1733096992507,3.08993021,97477.0,97476.0,0.1246318]
[1733096992954,3.08693021,97477.0,97476.0,0.1246318]
[1733096993169,3.08893021,97477.0,97476.0,0.1246318]
[1733096994024,3.05460221,97477.0,97476.0,0.1246318]
[1733096994243,3.03316321,97477.0,97476.0,0.1246318]
[1733096994669,3.00445121,97477.0,97476.0,0.1246318]
[1733096998192,2.85312714,97477.0,97476.0,0.1246318]
[1733096998448,4.246843,97479.0,97476.0,0.1246318]
[1733096998676,4.246843,97478.0,97476.0,0.0792318]
[1733096998911,4.097044,97477.0,97476.0,0.0792318]
[1733096999809,3.3524281,97477.0,97476.0,0.0792318]
[1733097000260,2.6647951,97477.0,97476.0,0.0792318]
[1733097000691,2.6667951,97477.0,97476.0,0.0792318]
[1733097000922,2.6509091,97477.0,97476.0,0.0792318]
[1733097001369,2.6509091,97477.0,97476.0,0.0802318]
[1733097001584,2.6509091,97477.0,97476.0,0.0792318]
[1733097001807,2.6549091,97477.0,97476.0,0.0792318]
[1733097004484,2.6549091,97477.0,97469.0,0.07114105]
[1733097004705,4.19988921,97476.0,97469.0,0.05061205]
[1733097004920,4.097044,97475.0,97467.0,0.10920473]
[1733097005140,4.097044,97474.0,97467.0,0.10920473]
[1733097005360,4.097044,97473.0,97467.0,0.10920473]
[1733097005605,4.097044,97472.0,97467.0,0.10920473]
[1733097005842,4.19988921,97471.0,97466.0,0.04761473]
[1733097006085,4.097044,97470.0,97466.0,0.04761473]
[1733097006311,0.0068661,97477.0,97466.0,0.04761473]
[1733097006312,3.65906821,97469.0,97466.0,0.04761473]
[1733097006528,3.372104,97468.0,97462.0,0.10920473]
[1733097006741,3.715848,97467.0,97459.0,0.06814473]
[1733097007009,0.10284521,97468.0,97459.0,0.04761473]
[1733097007010,3.214804,97466.0,97459.0,0.04761473]
[1733097007222,3.262144,97465.0,97459.0,0.04761473]
[1733097007437,3.258556,97464.0,97459.0,0.04761473]
[1733097007625,3.358566,97463.0,97459.0,0.07648373]
[1733097007875,2.485198,97462.0,97459.0,0.0796]
[1733097008089,2.452618,97461.0,97459.0,0.0796]
[1733097008331,2.749763,97460.0,97459.0,0.0796]
[1733097008570,2.697163,97460.0,97459.0,0.0806]
[1733097008808,0.375858,97460.0,97450.0,0.08887673]
[1733097009059,0.0008661,97477.0,97459.0,0.001]
[1733097009294,0.0008661,97477.0,97467.0,0.21840946]
[1733097009526,2.313298,97476.0,97467.0,0.21840946]
[1733097009761,2.313298,97476.0,97467.0,0.08867873]
[1733097009981,2.313298,97476.0,97467.0,0.04762673]
[1733097010451,0.0008661,97477.0,97467.0,0.04762673]
[1733097010678,1.925687,97476.0,97467.0,0.15683146]
[1733097010911,1.695606,97475.0,97468.0,0.027675]
[1733097011617,1.502468,97475.0,97468.0,0.027675]
[1733097011853,1.502468,97475.0,97466.0,0.10920473]
[1733097011854,0.005,97476.0,97470.0,0.0832]
[1733097012080,0.0008661,97477.0,97472.0,0.0832]
[1733097012303,0.41036,97475.0,97473.0,0.10466065]
[1733097012558,0.41036,97475.0,97474.0,0.0832]
[1733097012788,0.41036,97475.0,97474.0,0.12448221]
[1733097013006,0.41036,97475.0,97474.0,0.08344021]
[1733097013250,0.41010394,97475.0,97474.0,0.08344021]
[1733097013503,0.41210394,97475.0,97474.0,0.08344021]
[1733097013762,0.41210394,97475.0,97466.0,0.06997453]
[1733097013763,0.001,97476.0,97466.0,0.04945053]
[1733097014021,0.205197,97467.0,97465.0,0.22022507]
[1733097014322,0.205208,97462.0,97457.0,0.21840946]
[1733097014531,2.042022,97461.0,97460.0,0.01858285]
[1733097014762,2.042022,97461.0,97460.0,0.06935121]
[1733097014994,1.960242,97461.0,97460.0,0.06935121]
[1733097015449,1.946282,97461.0,97460.0,0.06935121]
[1733097015895,1.774008,97461.0,97460.0,0.00778121]
[1733097016122,0.205208,97462.0,97460.0,0.09222332]
[1733097016318,0.205208,97462.0,97461.0,0.01]
[1733097016586,0.205208,97462.0,97461.0,0.10135285]
[1733097016816,0.205208,97462.0,97461.0,0.10086485]
[1733097017042,0.205208,97462.0,97461.0,0.08034285]
[1733097017712,0.205208,97462.0,97457.0,0.21371257]
[1733097017979,0.205212,97460.0,97457.0,0.11745958]
[1733097018211,0.410424,97460.0,97457.0,0.00825485]
[1733097018445,0.20437502,97460.0,97459.0,0.0091]
[1733097018683,0.20437502,97460.0,97459.0,0.09142221]
[1733097018912,0.20437502,97460.0,97459.0,0.07089921]
[1733097019145,0.20437502,97460.0,97459.0,0.00933021]
[1733097019402,0.20537502,97460.0,97459.0,0.00933021]
[1733097019818,0.205227,97453.0,97451.0,0.37967663]
[1733097020074,0.001,97460.0,97459.0,0.006]
[1733097020546,0.001,97460.0,97459.0,0.00690783]
[1733097020766,0.205216,97458.0,97452.0,0.03348611]
[1733097020987,0.205216,97458.0,97452.0,1.1e-07]
[1733097021179,0.205223,97455.0,97452.0,1.1e-07]
[1733097021659,0.410446,97455.0,97452.0,1.1e-07]
[1733097021895,0.001,97453.0,97452.0,1.1e-07]
[1733097022338,0.410446,97455.0,97452.0,1.1e-07]
[1733097022568,0.411446,97455.0,97452.0,0.00600011]
[1733097023037,0.410446,97455.0,97452.0,1.1e-07]
[1733097023494,0.411446,97455.0,97452.0,1.1e-07]
[1733097023981,0.001,97453.0,97452.0,0.00600011]
[1733097025078,0.206223,97455.0,97453.0,0.37967663]
[1733097025306,0.206223,97455.0,97454.0,0.10284521]
[1733097025780,0.205223,97455.0,97454.0,0.08232221]
[1733097026476,0.205223,97455.0,97454.0,0.04127621]
[1733097026975,0.206223,97455.0,97454.0,0.00023021]
[1733097027202,0.206223,97455.0,97453.0,0.37967663]
[1733097027203,0.207223,97455.0,97453.0,0.31810763]
[1733097027944,0.206223,97455.0,97453.0,0.27706163]
[1733097028167,0.205241,97446.0,97445.0,0.21549263]
[1733097028397,0.205241,97446.0,97445.0,0.31833784]
[1733097029317,0.205241,97446.0,97445.0,0.25676584]
[1733097029576,0.20683568,97446.0,97445.0,0.25676584]
[1733097030042,0.24793468,97446.0,97445.0,0.25676584]
[1733097030300,0.21813921,97446.0,97445.0,0.35466584]
[1733097030784,0.21913921,97446.0,97445.0,0.35466584]
[1733097032173,0.21913921,97446.0,97445.0,0.35858706]
[1733097033097,0.17804021,97446.0,97445.0,0.35858706]
[1733097034284,0.16154139,97446.0,97445.0,0.35858706]
[1733097034514,0.00259468,97446.0,97445.0,0.35858706]
[1733097034754,0.20783568,97446.0,97445.0,0.35858706]
[1733097034972,0.20783568,97446.0,97445.0,0.36031986]
[1733097035208,0.20683568,97446.0,97445.0,0.36031986]
[1733097035440,0.20783568,97446.0,97445.0,0.36831986]
[1733097035912,0.20683568,97446.0,97445.0,0.36031986]
[1733097036141,0.20683568,97446.0,97445.0,0.36831986]
[1733097036865,0.20683568,97446.0,97445.0,0.18832386]
[1733097037090,0.20783568,97446.0,97445.0,0.17679986]
[1733097037773,0.20583568,97446.0,97445.0,0.13927586]
[1733097038243,0.20783568,97446.0,97445.0,0.07517986]
[1733097038467,0.20783568,97446.0,97445.0,0.06617986]
[1733097038924,0.20883568,97446.0,97445.0,0.07125864]
[1733097039152,0.20883568,97446.0,97445.0,0.07515605]
[1733097041427,0.20883568,97446.0,97445.0,0.61635605]
[1733097041886,0.205238,97448.0,97445.0,0.70705605]
[1733097042109,0.205238,97448.0,97447.0,0.10284521]
[1733097042578,0.205238,97448.0,97447.0,0.10677309]
[1733097043380,0.206238,97448.0,97447.0,0.11577309]
[1733097044094,0.207238,97448.0,97447.0,0.11577309]
[1733097044557,0.206238,97448.0,97447.0,0.11577309]
[1733097045034,0.206238,97448.0,97447.0,0.12477309]
[1733097046197,0.206238,97448.0,97447.0,0.66597309]
[1733097047346,0.2071044,97448.0,97447.0,0.66597309]
[1733097049022,0.0429614,97448.0,97447.0,0.66597309]
[1733097049473,0.0018664,97448.0,97447.0,0.66597309]
[1733097049745,0.2061044,97448.0,97447.0,0.65697309]
[1733097049988,0.2061044,97448.0,97447.0,0.66597309]
[1733097050253,0.2071044,97448.0,97447.0,0.65697309]
[1733097050743,0.2081044,97448.0,97447.0,0.66597309]
[1733097051010,0.2061044,97448.0,97447.0,0.64797309]
[1733097051264,0.2071044,97448.0,97447.0,0.65697309]
[1733097051511,0.2081044,97448.0,97447.0,0.65697309]
[1733097052001,0.2071044,97448.0,97447.0,0.64797309]
[1733097052250,0.2081044,97448.0,97447.0,0.65697309]
[1733097052495,0.2081044,97448.0,97447.0,0.65197309]
[1733097053005,0.2091044,97448.0,97447.0,0.66097309]
[1733097053489,0.2081044,97448.0,97447.0,0.65197309]
[1733097053733,0.2081044,97448.0,97447.0,0.65597309]
[1733097053988,0.2091044,97448.0,97447.0,0.65597309]
[1733097054241,0.2081044,97448.0,97447.0,0.64697309]
[1733097054725,0.2091044,97448.0,97447.0,0.65597309]
[1733097056534,0.2091044,97448.0,97447.0,0.09424909]
[1733097056769,0.205241,97446.0,97445.0,0.50015236]
[1733097057037,0.205241,97446.0,97445.0,0.50523317]
[1733097058479,0.206241,97446.0,97445.0,0.51423317]
[1733097059654,0.207241,97446.0,97445.0,0.52323317]
[1733097059880,0.205241,97446.0,97445.0,0.50523317]
[1733097060111,0.206241,97446.0,97445.0,0.51423317]
[1733097060361,0.207241,97446.0,97445.0,0.52323317]
[1733097060825,0.207241,97446.0,97445.0,0.52409857]
[1733097067194,0.207241,97446.0,97445.0,0.55611497]
[1733097067941,0.207241,97446.0,97445.0,0.52409857]
[1733097069428,0.207241,97446.0,97445.0,0.556115]
[1733097072032,0.2079718,97446.0,97445.0,0.547115]
[1733097072301,0.2089718,97446.0,97445.0,0.556115]
[1733097072774,0.2069718,97446.0,97445.0,0.538115]
[1733097073223,0.2089718,97446.0,97445.0,0.556115]
[1733097078734,0.22949943,97446.0,97445.0,0.556115]
[1733097082172,0.2089718,97446.0,97445.0,0.556115]
[1733097087636,0.2295656,97446.0,97445.0,0.556115]
[1733097089685,0.3068656,97446.0,97445.0,0.556115]
[1733097090348,0.2862718,97446.0,97445.0,0.556115]
[1733097090819,0.2862718,97446.0,97445.0,0.55351693]
[1733097092938,0.3348718,97446.0,97445.0,0.55351693]
[1733097095858,0.3348718,97446.0,97445.0,0.51246893]
[1733097096970,0.3338718,97446.0,97445.0,0.50346893]
[1733097097198,0.3338718,97446.0,97445.0,0.14958264]
[1733097097433,0.3348718,97446.0,97445.0,0.14958264]
[1733097097655,0.3338718,97446.0,97445.0,0.11756621]
[1733097097880,0.3338718,97446.0,97445.0,0.15861163]
[1733097098096,0.3338718,97446.0,97445.0,0.15375603]
[1733097098343,0.3338718,97446.0,97445.0,0.15861018]
[1733097102636,0.3338718,97446.0,97445.0,0.12656476]
[1733097103109,0.3338718,97446.0,97445.0,0.12171061]
[1733097103834,0.3338718,97446.0,97445.0,0.12656838]
[1733097104799,0.1309,97445.0,97440.0,0.33086036]
[1733097105041,0.1309,97440.0,97436.0,0.21840946]
[1733097105257,0.20526,97437.0,97436.0,0.21840946]
[1733097105528,0.336171,97432.0,97431.0,0.31053536]
[1733097105783,0.336171,97432.0,97431.0,0.10284521]
[1733097106040,0.336171,97432.0,97427.0,0.21840946]
[1733097106041,0.205279,97428.0,97427.0,0.21840946]
[1733097106300,0.336192,97422.0,97421.0,0.28470257]
[1733097106548,0.336192,97422.0,97421.0,0.38754778]
[1733097106782,0.336192,97422.0,97421.0,0.35098394]
[1733097107001,0.336192,97422.0,97421.0,0.28939694]
[1733097108011,0.337192,97422.0,97421.0,0.29839694]
[1733097108269,0.338192,97422.0,97421.0,0.30739694]
[1733097109460,0.337192,97422.0,97421.0,0.11633937]
[1733097109713,0.338192,97422.0,97421.0,0.12333937]
[1733097112867,0.337192,97422.0,97421.0,0.11633937]
[1733097113090,0.337192,97422.0,97421.0,0.06628137]
[1733097113305,0.337192,97422.0,97421.0,0.05275237]
[1733097113561,0.338192,97422.0,97421.0,0.06175237]
[1733097115456,0.338192,97422.0,97421.0,0.02049416]
[1733097115731,0.338192,97422.0,97420.0,0.03837216]
[1733097115952,0.330911,97413.0,97412.0,0.19456363]
[1733097116200,0.0798,97412.0,97403.0,0.3971522]
[1733097116938,0.0798,97412.0,97410.0,2e-07]
[1733097117169,0.330915,97411.0,97410.0,2e-07]
[1733097117409,0.20533,97404.0,97403.0,0.21509463]
[1733097117669,0.33093,97404.0,97394.0,0.21509463]
[1733097117887,0.0798,97403.0,97402.0,1e-06]
[1733097119983,0.0808,97403.0,97402.0,1e-06]
[1733097120880,0.0818,97403.0,97402.0,1e-06]
[1733097121370,0.0818,97403.0,97402.0,0.10284521]
[1733097121615,0.002,97403.0,97402.0,0.10284521]
[1733097122368,0.20533,97404.0,97402.0,0.10284521]
[1733097122610,0.205328,97405.0,97403.0,0.10284521]
[1733097123780,0.206328,97405.0,97403.0,0.10284521]
[1733097124228,0.207328,97405.0,97403.0,0.10784521]
[1733097125485,0.207328,97405.0,97403.0,0.10299204]
[1733097125949,0.205328,97405.0,97403.0,0.09799204]
[1733097126427,0.207328,97405.0,97403.0,0.10299204]
[1733097126628,0.206328,97405.0,97403.0,0.10299204]
[1733097126879,0.206328,97405.0,97403.0,0.09799204]
[1733097127109,0.207328,97405.0,97403.0,0.10299204]
[1733097127385,0.206328,97405.0,97403.0,0.10299204]
[1733097127612,0.207328,97405.0,97403.0,0.10299204]
[1733097128549,0.206328,97405.0,97403.0,0.09799204]
[1733097128774,0.206328,97405.0,97403.0,0.10299204]
[1733097129014,0.207328,97405.0,97403.0,0.10299204]
[1733097129264,0.206328,97405.0,97403.0,0.09799204]
[1733097129493,0.1258,97404.0,97403.0,0.09799204]
[1733097129733,0.1258,97404.0,97403.0,0.10299204]
[1733097130213,0.1258,97404.0,97403.0,0.09799204]
[1733097131635,0.1258,97404.0,97403.0,0.10299204]
[1733097132075,0.1268,97404.0,97403.0,0.09799204]
[1733097132520,0.1288,97404.0,97403.0,0.10299204]
[1733097138745,0.1278,97404.0,97403.0,0.09799204]
[1733097138964,0.1268,97404.0,97403.0,0.10299204]
[1733097139187,0.1278,97404.0,97403.0,0.10299204]
[1733097139414,0.1258,97404.0,97403.0,0.09799204]
[1733097139864,0.1278,97404.0,97403.0,0.10299204]
[1733097140349,0.1278,97404.0,97403.0,0.13502267]
[1733097140574,0.002,97404.0,97403.0,0.13502267]
[1733097141289,0.002,97404.0,97403.0,0.10299204]
[1733097141516,0.002,97404.0,97403.0,0.13503798]
[1733097141973,0.205332,97403.0,97402.0,0.17878937]
[1733097142203,0.205332,97403.0,97402.0,0.28163458]
[1733097142441,0.205332,97403.0,97402.0,0.10457681]
[1733097143218,0.206332,97403.0,97402.0,0.10957681]
[1733097144412,0.207332,97403.0,97402.0,0.10957681]
[1733097146827,0.207332,97403.0,97402.0,0.0067316]
[1733097151590,0.205343,97398.0,97397.0,0.17705777]
[1733097151834,0.205343,97398.0,97397.0,0.31198474]
[1733097152377,0.205343,97398.0,97397.0,0.18860453]
[1733097152605,0.333343,97398.0,97397.0,0.07438277]
[1733097152823,0.205353,97393.0,97392.0,0.0445849]
[1733097153051,0.205353,97393.0,97392.0,0.0240489]
[1733097153962,0.206353,97393.0,97391.0,9e-07]
[1733097154427,0.128,97392.0,97391.0,9e-07]
[1733097156297,0.129,97392.0,97391.0,9e-07]
[1733097156519,0.13,97392.0,97391.0,9e-07]
[1733097158635,0.0822,97392.0,97391.0,0.10284611]
[1733097158882,0.002,97392.0,97391.0,0.10284611]
[1733097159348,0.002,97392.0,97391.0,0.1348972]
[1733097160530,0.002,97392.0,97391.0,0.6760972]
[1733097160961,0.002,97392.0,97391.0,0.64404611]
[1733097161245,0.002,97392.0,97391.0,0.67610063]
[1733097165729,0.002,97392.0,97391.0,0.67783243]
[1733097177758,0.002,97392.0,97391.0,0.68322188]
[1733097178442,0.0028659,97392.0,97391.0,0.68322188]
[1733097178672,0.0028659,97392.0,97391.0,0.53930377]
[1733097178905,0.0501659,97392.0,97391.0,0.40456925]
[1733097179846,0.0501659,97392.0,97391.0,0.30188925]
[1733097181489,0.0501659,97392.0,97391.0,2.5e-07]
[1733097181710,0.205357,97391.0,97383.0,0.21512961]
[1733097181932,0.205359,97390.0,97384.0,0.10284521]
[1733097182165,0.205359,97390.0,97384.0,0.10734041]
[1733097183772,0.20537,97385.0,97384.0,0.10734041]
[1733097184454,0.20537,97385.0,97384.0,0.10284521]
[1733097184916,0.20537,97385.0,97384.0,0.10734987]
[1733097185378,0.20637,97385.0,97384.0,0.10734987]
[1733097185605,0.20737,97385.0,97384.0,0.00734987]
[1733097186061,0.20737,97385.0,97384.0,0.00284521]
[1733097187735,0.28517,97385.0,97384.0,0.00284521]
[1733097189623,0.28517,97385.0,97384.0,0.00457701]
[1733097191708,0.20737,97385.0,97384.0,0.00457701]
[1733097191934,0.15909686,97385.0,97384.0,0.00457701]
[1733097192173,0.15909686,97385.0,97384.0,0.03664151]
[1733097193340,0.15909686,97385.0,97384.0,0.33140951]
[1733097193802,0.15909686,97385.0,97384.0,0.33599997]
[1733097195023,0.002,97385.0,97384.0,0.33599997]
[1733097195259,0.20537,97385.0,97384.0,0.33821901]
[1733097195498,0.18557831,97385.0,97384.0,0.33821901]
[1733097196979,0.18557831,97385.0,97384.0,0.33597102]
[1733097197231,0.15956889,97385.0,97384.0,0.33824617]
[1733097197457,0.205366,97387.0,97384.0,0.33824617]
[1733097197680,0.20537,97385.0,97384.0,0.30333646]
[1733097197914,0.20537,97385.0,97384.0,0.33537777]
[1733097198388,0.20737,97385.0,97384.0,0.34437777]
[1733097198831,0.20537,97385.0,97384.0,0.43822298]
[1733097199068,0.20737,97385.0,97384.0,0.44722298]
[1733097199979,0.20737,97385.0,97384.0,0.44038632]
[1733097202286,0.2082354,97385.0,97384.0,0.44712111]
[1733097210067,0.2082354,97385.0,97384.0,0.44346013]
[1733097212237,0.2864354,97385.0,97384.0,0.44346013]
[1733097213153,0.2864354,97385.0,97384.0,0.43672534]
[1733097213657,0.2864354,97385.0,97384.0,0.44345701]
[1733097213903,0.2854354,97385.0,97384.0,0.43445701]
[1733097214131,0.2854354,97385.0,97384.0,0.44345701]
[1733097214359,0.2854354,97385.0,97384.0,0.44518781]
[1733097214610,0.2854354,97385.0,97384.0,0.44118781]
[1733097215063,0.2844354,97385.0,97384.0,0.43618781]
[1733097215286,0.2854354,97385.0,97384.0,0.44118781]
[1733097215514,0.2854354,97385.0,97384.0,0.43445614]
[1733097215773,0.2844354,97385.0,97384.0,0.43623158]
[1733097215995,0.2854354,97385.0,97384.0,0.44523158]
[1733097216242,0.2854354,97385.0,97384.0,0.43395396]
[1733097216465,0.2864354,97385.0,97384.0,0.4442036]
[1733097216717,0.2844354,97385.0,97384.0,0.4362036]
[1733097217178,0.2864354,97385.0,97384.0,0.4492036]
[1733097217400,0.2864354,97385.0,97384.0,0.4412036]
[1733097217628,0.2864354,97385.0,97384.0,0.4442036]
[1733097217854,0.2874354,97385.0,97384.0,0.4492036]
[1733097218331,0.2864354,97385.0,97384.0,0.4442036]
[1733097218599,0.2864354,97385.0,97384.0,0.4492036]
[1733097218831,0.2854354,97385.0,97384.0,0.4412036]
[1733097219080,0.2864354,97385.0,97384.0,0.4502036]
[1733097219791,0.2864354,97385.0,97384.0,0.4412036]
[1733097220034,0.2854354,97385.0,97384.0,0.4412036]
[1733097220272,0.2854354,97385.0,97384.0,0.4452036]
[1733097220519,0.2864354,97385.0,97384.0,0.4412036]
[1733097221235,0.2874354,97385.0,97384.0,0.4502036]
[1733097222364,0.2864354,97385.0,97384.0,0.4502036]
[1733097222620,0.2854354,97385.0,97384.0,0.4412036]
[1733097222856,0.2864354,97385.0,97384.0,0.4502036]
[1733097223765,0.2864354,97385.0,97384.0,0.44795404]
[1733097223987,0.3315354,97385.0,97384.0,0.44795404]
[1733097224218,0.3315354,97385.0,97384.0,0.45017567]
[1733097224459,0.3315354,97385.0,97384.0,0.15733685]
[1733097224914,0.3315354,97385.0,97384.0,0.15061732]
[1733097225109,0.3315354,97385.0,97384.0,0.15736526]
[1733097225373,0.3315354,97385.0,97384.0,0.15061732]
[1733097226035,0.3315354,97385.0,97384.0,0.15737517]
[1733097227260,0.3315354,97385.0,97384.0,0.15061732]
[1733097233628,0.3315354,97385.0,97384.0,0.15510103]
[1733097240895,0.3315354,97385.0,97384.0,0.14562366]
[1733097245463,0.3315354,97385.0,97384.0,0.10454966]
[1733097247078,0.2082354,97385.0,97383.0,0.21036833]
[1733097247290,0.164299,97383.0,97375.0,0.21512961]
[1733097247513,0.285399,97383.0,97382.0,0.10314521]
[1733097247733,0.164306,97379.0,97375.0,0.21512961]
[1733097247972,0.285406,97379.0,97378.0,0.13664223]
[1733097248848,0.286406,97379.0,97378.0,0.14564223]
[1733097249055,0.28699995,97379.0,97378.0,0.14564223]
[1733097249273,0.28599995,97379.0,97378.0,0.13164223]
[1733097249480,0.28699995,97379.0,97378.0,0.14064223]
[1733097249694,0.28799995,97379.0,97378.0,0.14064223]
[1733097252178,0.24692295,97379.0,97378.0,0.14064223]
[1733097252394,0.12582295,97379.0,97378.0,0.14064223]
[1733097259650,0.12582295,97379.0,97378.0,0.14237303]
[1733097259865,0.12668835,97379.0,97378.0,0.14237303]
[1733097262350,0.11621817,97379.0,97378.0,0.14237303]
[1733097262577,0.11621817,97379.0,97378.0,0.29294136]
[1733097267166,0.11621817,97379.0,97378.0,0.29578657]
[1733097278985,0.16351817,97379.0,97378.0,0.29578657]
[1733097279215,0.24571817,97379.0,97378.0,0.29578657]
[1733097282221,0.11621817,97379.0,97378.0,0.29578657]
[1733097285045,0.11621817,97379.0,97378.0,0.29568657]
[1733097286931,0.24641817,97379.0,97378.0,0.29568657]
[1733097287406,0.01,97432.0,97411.0,0.02515342]
[1733097287630,0.102656,97412.0,97411.0,4.2e-07]
[1733097287885,0.102658,97411.0,97402.0,0.21512961]
[1733097288113,0.102666,97403.0,97402.0,0.21512961]
[1733097288390,0.102675,97394.0,97393.0,0.21512961]
[1733097288618,0.102675,97394.0,97393.0,0.03206613]
[1733097288842,0.102675,97394.0,97393.0,0.13491134]
[1733097290407,0.227175,97394.0,97393.0,0.13491134]
[1733097290870,0.228175,97394.0,97393.0,0.13591134]
[1733097291319,0.229175,97394.0,97393.0,0.13691134]
[1733097292703,0.229175,97394.0,97393.0,0.28747967]
[1733097294075,0.20607704,97394.0,97393.0,0.28747967]
[1733097294297,0.08157704,97394.0,97393.0,0.28747967]
[1733097299486,0.08157704,97394.0,97393.0,0.36487967]
[1733097300173,0.08057704,97394.0,97393.0,0.36387967]
[1733097300394,0.07957704,97394.0,97393.0,0.28547967]
[1733097300654,0.08057704,97394.0,97393.0,0.28647967]
[1733097301126,0.08157704,97394.0,97393.0,0.28747967]
[1733097301601,0.15947704,97394.0,97393.0,0.28747967]
[1733097302500,0.0799,97394.0,97393.0,0.28747967]
[1733097303673,0.182575,97394.0,97393.0,0.28747967]
[1733097305402,0.104675,97394.0,97393.0,0.28747967]
[1733097306311,0.103375,97394.0,97393.0,0.28747967]
[1733097306792,0.103375,97394.0,97393.0,0.28921027]
[1733097307255,0.1042403,97394.0,97393.0,0.28921027]
[1733097315703,0.10351738,97394.0,97393.0,0.28921027]
[1733097315943,0.10091738,97394.0,97393.0,0.28921027]
[1733097316645,0.09018953,97394.0,97393.0,0.28921027]
[1733097316867,0.09018953,97394.0,97393.0,0.37061027]
[1733097318271,0.09018953,97394.0,97393.0,0.28921027]
[1733097319220,0.09018953,97394.0,97393.0,0.41231027]
[1733097319447,0.102659,97409.0,97393.0,0.41231027]
[1733097319448,0.102667,97403.0,97393.0,0.41231027]
[1733097319689,0.102659,97409.0,97402.0,0.10284521]
[1733097319907,0.102659,97409.0,97407.0,0.10284521]
[1733097320147,0.102659,97409.0,97407.0,0.13491134]
[1733097320653,0.102658,97411.0,97407.0,0.13491134]
[1733097320895,0.102659,97410.0,97407.0,0.13491134]
[1733097322074,0.102659,97410.0,97407.0,0.44289134]
[1733097322523,0.0018651,97408.0,97407.0,0.45189134]
[1733097322759,0.0028651,97408.0,97407.0,0.83959134]
[1733097325605,0.0018651,97408.0,97407.0,0.83059134]
[1733097326069,0.0028651,97408.0,97407.0,0.83959134]
[1733097326307,0.0008651,97408.0,97407.0,0.82159134]
[1733097326831,0.0018651,97408.0,97407.0,0.83059134]
[1733097327061,0.0008651,97408.0,97407.0,0.82159134]
[1733097327773,0.0018651,97408.0,97407.0,0.88494864]
[1733097328198,0.0008651,97408.0,97407.0,0.87594864]
[1733097328429,0.0018651,97408.0,97407.0,0.88494864]
[1733097328644,0.0028651,97408.0,97407.0,0.89394864]
[1733097332330,0.0008651,97408.0,97407.0,0.87594864]
[1733097332771,0.0018651,97408.0,97407.0,0.88494864]
[1733097333222,0.0028651,97408.0,97407.0,0.89394864]
[1733097337818,0.0028651,97408.0,97407.0,0.96984864]
[1733097339638,0.092377,97426.0,97410.0,0.3787]
[1733097339874,0.092386,97417.0,97416.0,0.21838474]
[1733097340124,0.092386,97417.0,97416.0,0.03206613]
[1733097340338,0.092383,97420.0,97416.0,0.41076613]
[1733097340550,0.092383,97420.0,97417.0,0.03206613]
[1733097340771,0.092383,97420.0,97418.0,0.03206613]
[1733097340995,0.092383,97420.0,97419.0,0.03206613]
[1733097341206,0.092383,97420.0,97419.0,0.34001613]
[1733097342143,0.0822,97430.0,97419.0,0.34001613]
[1733097342354,0.205296,97420.0,97419.0,0.30795]
[1733097342573,0.205296,97420.0,97419.0,0.33991169]
[1733097342813,0.205296,97420.0,97419.0,0.34891169]
[1733097343021,0.205296,97420.0,97419.0,0.33991169]
[1733097343262,0.205296,97420.0,97419.0,0.34891169]
[1733097343477,0.205296,97420.0,97419.0,0.33991169]
[1733097343704,0.205296,97420.0,97419.0,0.71861169]
[1733097344146,0.205296,97420.0,97419.0,0.72761169]
[1733097344359,0.326796,97420.0,97419.0,0.72761169]
[1733097345028,0.326796,97420.0,97419.0,0.73661169]
[1733097345749,0.326796,97420.0,97419.0,0.8394569]
[1733097352984,0.3276617,97420.0,97419.0,0.8394569]
[1733097353216,0.3276617,97420.0,97419.0,0.4607569]
[1733097358754,0.3276617,97420.0,97419.0,0.8394569]
[1733097362687,0.2061617,97420.0,97419.0,0.8394569]
[1733097374590,0.3325617,97420.0,97419.0,0.8394569]
[1733097376708,0.2061617,97420.0,97419.0,0.8394569]
[1733097377373,0.0008657,97420.0,97419.0,0.8394569]
[1733097378267,0.0008657,97420.0,97419.0,0.8214569]
[1733097378742,0.0008657,97420.0,97419.0,0.8394569]
[1733097378957,0.0008657,97420.0,97419.0,0.8304569]
[1733097380828,0.20528,97428.0,97419.0,0.9095569]
[1733097381053,0.20528,97428.0,97427.0,0.10284521]
[1733097381305,0.20528,97428.0,97427.0,0.1348069]
[1733097381548,0.20528,97428.0,97427.0,0.4427269]
[1733097381764,0.410554,97430.0,97427.0,0.4427269]
[1733097381982,0.410554,97430.0,97429.0,0.48154521]
[1733097381983,0.205277,97430.0,97429.0,0.48154521]
[1733097382197,0.205277,97430.0,97429.0,0.5135069]
[1733097382440,0.205277,97430.0,97429.0,0.8214269]
[1733097383727,0.410528,97436.0,97429.0,0.8214269]
[1733097383984,0.205262,97436.0,97435.0,0.10284521]
[1733097384213,0.205262,97436.0,97435.0,0.1348069]
[1733097384696,0.205262,97436.0,97435.0,0.4427069]
[1733097385117,0.205262,97436.0,97435.0,0.4517069]
[1733097385335,0.205262,97436.0,97435.0,0.4607069]
[1733097385793,0.205262,97436.0,97435.0,0.8394069]
[1733097386251,0.250962,97436.0,97435.0,0.8394069]
[1733097387422,0.2518276,97436.0,97435.0,0.8394069]
[1733097388169,0.3281276,97436.0,97435.0,0.8394069]
[1733097396747,0.3281276,97436.0,97435.0,0.89236163]
[1733097409426,0.3381276,97436.0,97435.0,0.89236163]
[1733097409884,0.3381276,97436.0,97435.0,0.41081642]
[1733097410084,0.339381,97427.0,97426.0,0.2150115]
[1733097410284,0.329394,97421.0,97420.0,0.001731]
[1733097410488,0.339394,97421.0,97420.0,0.13662381]